bitfinex-derivatives/quotes_ETHF0:USTF0_20260209
["timestamp","ask_amount","ask_price","bid_price","bid_amount"]
[1770631457429,3.30089822,2040.1,2039.4,0.00467513]
[1770631457628,3.30089822,2040.1,2039.5,0.24537]
[1770631458123,3.30089822,2040.1,2039.4,0.00467513]
[1770631458322,3.50621707,2040.0,2039.4,0.00467513]
[1770631459224,3.50621707,2040.0,2039.4,3.77286706]
[1770631461532,3.50621707,2040.2,2039.4,3.77286706]
[1770631461825,3.50621707,2040.2,2039.5,0.24537]
[1770631462027,3.50621707,2040.2,2039.6,3.76819193]
[1770631462229,3.50621707,2040.4,2039.6,3.76819193]
[1770631463926,3.50621707,2040.4,2039.8,3.76819193]
[1770631464127,3.50621707,2040.4,2039.7,0.24534]
[1770631465227,3.50621707,2040.4,2039.7,4.01353193]
[1770631468827,3.50621707,2040.4,2039.7,0.24534]
[1770631470732,6.42393228,2040.2,2039.2,0.2454]
[1770631470936,3.50621707,2040.0,2039.2,0.2454]
[1770631472034,3.50621707,2039.9,2039.2,0.24916024]
[1770631472434,3.50621707,2039.7,2039.2,0.24916024]
[1770631472630,3.51167479,2039.7,2039.2,4.01735217]
[1770631473936,0.00545772,2039.7,2039.2,4.36931289]
[1770631474135,3.50621707,2040.2,2039.2,4.36931289]
[1770631474540,44.30621707,2040.1,2039.2,4.36931289]
[1770631475037,44.31188042,2040.1,2039.2,4.36931289]
[1770631475230,3.50621707,2040.0,2039.2,4.36931289]
[1770631476635,3.50621707,2040.0,2039.2,0.00376024]
[1770631476839,3.50621707,2039.9,2039.2,0.00376024]
[1770631477041,3.50621707,2039.8,2039.0,3.76819193]
[1770631477342,3.50621707,2039.7,2039.0,4.12390476]
[1770631477646,3.50621707,2039.7,2039.0,3.76819193]
[1770631478042,3.50621707,2039.7,2039.0,3.77313955]
[1770631478646,3.50621707,2039.7,2039.0,0.00494762]
[1770631479849,6.42393228,2039.7,2039.0,0.00494762]
[1770631480045,6.42393228,2039.7,2038.9,0.60153609]
[1770631480046,3.50621707,2039.5,2038.9,0.60153609]
[1770631480447,3.50621707,2039.5,2038.9,0.24544]
[1770631480648,3.50621707,2039.5,2038.6,4.12313186]
[1770631481147,3.50621707,2039.5,2038.6,4.12877429]
[1770631486858,3.50621707,2039.5,2038.2,4.16095707]
[1770631486859,4.3838989,2039.3,2038.2,4.16095707]
[1770631487054,4.3838989,2039.2,2038.2,4.16095707]
[1770631487256,4.3838989,2039.0,2038.2,4.16095707]
[1770631487554,4.3838989,2039.0,2037.9,0.24556]
[1770631487758,4.3838989,2039.0,2037.9,4.40651707]
[1770631488152,4.3838989,2039.0,2037.9,4.41108512]
[1770631488355,4.3838989,2038.7,2037.9,0.00456805]
[1770631488655,4.3838989,2038.4,2037.5,4.16095707]
[1770631488847,4.3838989,2038.4,2037.3,4.16095707]
[1770631489658,4.38929384,2038.4,2037.3,4.16732078]
[1770631492660,4.3838989,2038.2,2037.3,4.16732078]
[1770631492965,40.8,2038.3,2037.5,4.16095707]
[1770631493162,45.1838989,2038.3,2037.5,4.16095707]
[1770631494359,4.3838989,2038.2,2037.5,4.16095707]
[1770631495058,4.3838989,2038.0,2037.3,0.00636371]
[1770631496462,4.3838989,2038.0,2036.9,4.40663707]
[1770631496762,4.3838989,2038.0,2036.3,6.04543]
[1770631496763,4.3838989,2038.0,2036.7,4.16095707]
[1770631497463,4.3838989,2038.0,2036.7,4.16709499]
[1770631500472,4.3838989,2038.0,2037.1,4.16095707]
[1770631501057,4.3838989,2038.0,2037.3,4.16095707]
[1770631501560,4.3838989,2038.0,2036.9,4.16095707]
[1770631502667,4.3838989,2038.0,2036.7,4.16709499]
[1770631505163,4.3838989,2037.8,2036.7,4.16709499]
[1770631506074,4.3838989,2037.8,2036.7,0.00613792]
[1770631506270,4.3838989,2037.5,2036.2,4.49266847]
[1770631506569,4.3838989,2037.2,2036.2,4.16095707]
[1770631506771,4.3838989,2037.0,2036.2,4.16095707]
[1770631507366,4.3838989,2036.9,2036.2,0.00627743]
[1770631507567,4.38933322,2036.9,2036.2,0.00627743]
[1770631508164,4.38933322,2036.9,2035.7,4.16095707]
[1770631508371,4.38933322,2036.9,2036.0,0.24579]
[1770631508564,4.38933322,2036.9,2036.1,4.16095707]
[1770631508766,4.38933322,2036.9,2036.3,4.16095707]
[1770631508767,0.00543432,2036.9,2036.3,4.16095707]
[1770631509070,0.00543432,2036.9,2036.3,4.1644494]
[1770631509266,4.3838989,2037.8,2036.8,0.24569]
[1770631509471,4.3838989,2037.5,2036.4,4.16095707]
[1770631509672,4.3838989,2037.3,2036.6,4.16095707]
[1770631510271,0.00502666,2037.3,2036.8,4.16095707]
[1770631510473,4.38892556,2037.3,2036.8,4.16095707]
[1770631510976,4.38892556,2037.3,2036.7,0.24571]
[1770631511373,4.38892556,2037.3,2036.5,4.16095707]
[1770631511573,4.38892556,2037.3,2036.3,4.1644494]
[1770631512978,4.38892556,2037.3,2036.3,0.00349233]
[1770631514077,4.38892556,2037.3,2035.7,4.16095707]
[1770631514078,4.3838989,2037.1,2035.7,4.16095707]
[1770631514276,4.3838989,2037.0,2035.7,4.16095707]
[1770631514670,4.3838989,2037.0,2036.1,4.16095707]
[1770631515276,4.3838989,2037.0,2036.1,0.0051083]
[1770631518373,5.06123524,2037.0,2036.2,4.65848738]
[1770631518783,5.06123524,2037.0,2036.1,0.0051083]
[1770631518974,5.06123524,2036.9,2035.8,4.65848738]
[1770631519375,40.8,2036.8,2035.8,4.65848738]
[1770631519577,40.8,2036.8,2036.0,4.65848738]
[1770631519869,40.8,2036.8,2036.2,4.65848738]
[1770631520076,40.8,2036.8,2036.2,4.66401454]
[1770631520276,45.86123524,2036.8,2036.2,4.66401454]
[1770631520479,5.06123524,2036.7,2036.2,4.66401454]
[1770631520783,0.00502666,2037.3,2036.4,4.65848738]
[1770631520784,5.06123524,2037.1,2036.4,4.65848738]
[1770631520980,5.06123524,2037.1,2036.2,0.00552716]
[1770631520981,5.06123524,2037.1,2036.6,4.65848738]
[1770631521376,40.8,2037.1,2036.7,0.24571]
[1770631521681,5.0662619,2037.3,2036.8,4.65848738]
[1770631521886,0.00502666,2037.3,2036.8,4.65848738]
[1770631522081,5.0662619,2037.3,2036.8,4.65848738]
[1770631522581,0.00502666,2037.3,2036.8,4.65848738]
[1770631522987,45.86123524,2037.5,2036.8,4.65848738]
[1770631523381,40.8,2037.5,2037.0,4.65848738]
[1770631523580,5.06123524,2037.4,2036.5,4.65848738]
[1770631523982,5.06740607,2037.4,2036.5,4.65848738]
[1770631525382,5.06740607,2037.4,2036.4,0.24574]
[1770631525785,5.06123524,2037.3,2036.4,0.24574]
[1770631526179,5.06123524,2037.3,2036.0,4.65848738]
[1770631526485,5.06123524,2037.3,2035.9,4.90428738]
[1770631526486,5.06123524,2037.1,2035.9,4.90428738]
[1770631526681,5.06123524,2036.9,2035.8,4.65848738]
[1770631526981,5.06123524,2036.8,2035.8,4.65848738]
[1770631527777,5.06123524,2036.8,2035.8,4.6643274]
[1770631529382,2.88884184,2036.9,2036.0,4.65848738]
[1770631529383,5.06123524,2036.9,2036.0,4.65848738]
[1770631530375,5.06123524,2036.9,2036.2,4.65848738]
[1770631530986,5.06123524,2036.9,2035.8,0.00584002]
[1770631531179,5.06123524,2036.5,2035.5,4.90432738]
[1770631531486,5.06123524,2036.4,2035.5,4.90432738]
[1770631531681,5.06123524,2036.3,2035.5,4.90432738]
[1770631532288,5.06123524,2036.3,2035.0,6.0495]
[1770631532289,5.06123524,2036.2,2035.4,4.65848738]
[1770631532580,5.06123524,2036.2,2035.2,4.65848738]
[1770631532782,5.06123524,2036.1,2035.2,4.65848738]
[1770631533276,5.06123524,2036.1,2035.2,4.6636083]
[1770631535886,7.95007708,2036.0,2035.2,4.6636083]
[1770631536190,5.06123524,2036.0,2035.2,4.6636083]
[1770631536383,5.06123524,2036.2,2035.2,4.6636083]
[1770631537998,4.26224678,2036.2,2035.2,4.6636083]
[1770631539690,45.86123524,2036.4,2035.3,4.65848738]
[1770631540594,5.06123524,2036.3,2035.3,4.65848738]
[1770631542796,40.8,2036.4,2035.5,4.65848738]
[1770631543097,45.86123524,2036.4,2035.5,4.65848738]
[1770631543295,5.06123524,2036.3,2035.5,4.65848738]
[1770631552093,36.81530452,2036.8,2035.7,4.95934296]
[1770631552293,5.05930452,2036.7,2035.9,4.95934296]
[1770631553898,5.05930452,2036.8,2035.9,4.95934296]
[1770631554693,5.05930452,2036.8,2036.1,4.95934296]
[1770631554892,43.68884184,2036.9,2036.1,4.95934296]
[1770631554893,40.8,2036.9,2036.1,4.95934296]
[1770631555093,45.85930452,2036.9,2036.1,4.95934296]
[1770631555294,5.05930452,2036.8,2036.1,4.95934296]
[1770631555994,40.8,2036.9,2036.1,4.95934296]
[1770631556392,40.8,2036.9,2036.2,0.24577]
[1770631556598,40.8,2036.9,2036.3,4.95934296]
[1770631557203,5.05930452,2036.8,2036.1,4.95934296]
[1770631561102,40.8,2036.9,2036.1,5.20511296]
[1770631561499,40.8,2036.9,2036.2,4.95934296]
[1770631561703,31.767,2037.3,2036.4,4.95934296]
[1770631561902,31.767,2037.3,2036.6,4.95934296]
[1770631562103,72.567,2037.3,2036.6,4.95934296]
[1770631562793,5.05930452,2037.6,2036.8,4.95934296]
[1770631563202,5.05930452,2037.6,2036.7,4.95934296]
[1770631563402,5.05930452,2037.4,2036.7,4.95934296]
[1770631563602,40.8,2037.5,2036.7,4.95934296]
[1770631563797,45.86338375,2037.5,2036.7,4.96311005]
[1770631564101,5.06338375,2037.5,2036.7,5.20880005]
[1770631565398,5.06338375,2037.5,2036.7,0.00376709]
[1770631565599,5.06338375,2037.5,2036.4,4.95934296]
[1770631566100,2.88884184,2037.4,2036.2,4.95934296]
[1770631566300,5.05930452,2037.3,2036.2,4.95934296]
[1770631566607,5.05930452,2037.3,2036.2,4.96367237]
[1770631567204,5.05930452,2037.2,2036.2,4.96367237]
[1770631569906,5.05930452,2037.2,2036.4,4.95934296]
[1770631570306,5.05930452,2037.2,2036.6,4.95934296]
[1770631571004,5.05930452,2037.3,2036.6,4.95934296]
[1770631572200,5.05930452,2037.3,2036.5,0.24573]
[1770631573109,5.05930452,2037.3,2036.4,4.95934296]
[1770631573807,5.05930452,2037.3,2036.4,5.20507296]
[1770631574910,5.05930452,2037.3,2036.2,0.00432941]
[1770631575114,5.05930452,2037.3,2036.2,4.96367237]
[1770631579310,5.05930452,2037.3,2036.4,4.90237148]
[1770631579311,4.81686967,2037.2,2036.4,4.90237148]
[1770631581218,4.81686967,2037.2,2036.3,0.24575]
[1770631581423,4.81686967,2037.1,2036.3,0.24575]
[1770631582622,4.81686967,2037.1,2036.3,5.14812148]
[1770631583037,4.81686967,2037.3,2036.8,4.90237148]
[1770631587136,4.81686967,2037.4,2036.8,4.90237148]
[1770631587336,9.72647257,2037.4,2036.8,4.90237148]
[1770631588040,4.81686967,2037.3,2036.8,4.90237148]
[1770631590339,4.8209489,2037.5,2036.8,4.90237148]
[1770631590941,9.7305518,2037.5,2036.8,4.90237148]
[1770631591237,4.8209489,2037.5,2036.8,4.90237148]
[1770631591544,0.00407923,2037.5,2036.8,4.90237148]
[1770631591743,4.8209489,2037.5,2036.8,4.90237148]
[1770631592643,0.00407923,2037.5,2036.8,4.90237148]
[1770631592850,4.81686967,2037.4,2036.8,4.90237148]
[1770631595348,4.81686967,2037.3,2036.8,4.90237148]
[1770631595848,4.81686967,2037.2,2036.8,4.90237148]
[1770631597844,4.81686967,2037.2,2036.7,5.14807148]
[1770631598051,4.81686967,2037.1,2036.7,5.14807148]
[1770631599249,9.72647257,2037.2,2036.7,5.14807148]
[1770631599442,4.9096029,2037.2,2036.7,5.14807148]
[1770631599644,4.8209489,2037.5,2036.7,5.14807148]
[1770631599849,9.7305518,2037.5,2036.7,5.14807148]
[1770631600241,0.00407923,2037.5,2036.7,5.14807148]
[1770631600546,4.8209489,2037.5,2036.7,5.14807148]
[1770631600844,0.00407923,2037.5,2036.7,5.14807148]
[1770631601848,1e-08,2037.5,2037.2,4.90237148]
[1770631602045,45.61686967,2037.9,2037.2,4.90237148]
[1770631602545,4.81686967,2037.9,2037.4,4.90237148]
[1770631602745,4.81686967,2038.0,2037.4,4.90237148]
[1770631603050,43.42212957,2038.2,2037.4,4.90237148]
[1770631603051,4.81686967,2038.2,2037.4,4.90237148]
[1770631603241,4.82065323,2038.2,2037.6,4.90237148]
[1770631603445,4.81686967,2038.0,2037.6,4.90237148]
[1770631603950,4.9096029,2037.8,2037.6,4.90237148]
[1770631604140,4.90838039,2037.8,2037.6,4.90237148]
[1770631604349,4.82065323,2038.2,2037.6,4.90237148]
[1770631605046,4.81686967,2038.6,2037.8,4.47988566]
[1770631605650,4.41633498,2038.4,2037.8,4.47988566]
[1770631606045,4.42142055,2038.4,2037.8,4.48594869]
[1770631606451,0.00508557,2038.4,2037.8,4.48594869]
[1770631607852,4.42142055,2038.4,2037.8,4.48594869]
[1770631609052,4.41633498,2038.9,2038.0,4.28224865]
[1770631609648,4.41633498,2038.7,2038.0,4.28224865]
[1770631609845,4.41633498,2038.7,2037.9,0.24556]
[1770631610044,4.42054206,2038.7,2037.9,0.24556]
[1770631610247,4.41633498,2038.3,2037.4,4.52786865]
[1770631610853,4.41633498,2038.3,2037.4,4.84008925]
[1770631611254,4.41633498,2038.3,2037.4,4.84389614]
[1770631614757,4.41633498,2038.6,2037.7,4.28224865]
[1770631615053,4.41633498,2038.6,2037.9,4.28224865]
[1770631616764,0.00420708,2038.7,2037.9,4.28224865]
[1770631616961,4.42054206,2038.7,2037.9,4.28224865]
[1770631617662,4.42054206,2038.7,2038.1,4.28224865]
[1770631618758,4.41633498,2039.1,2038.2,0.24553]
[1770631618963,4.41633498,2039.1,2038.2,4.52777865]
[1770631619159,4.41633498,2039.1,2038.0,4.28224865]
[1770631619371,4.41633498,2038.9,2038.0,4.28224865]
[1770631619864,4.42062941,2038.9,2038.0,4.28224865]
[1770631620368,4.42062941,2038.9,2038.2,4.28224865]
[1770631621259,4.42062941,2038.9,2038.1,4.52778865]
[1770631622264,0.00429443,2038.9,2038.1,10.56808865]
[1770631622458,4.41633498,2039.5,2038.6,4.28224865]
[1770631622663,4.41633498,2039.5,2038.8,4.28224865]
[1770631622866,5.77973837,2039.9,2039.0,4.28224865]
[1770631622867,4.41633498,2039.9,2039.0,4.28224865]
[1770631623069,4.41633498,2040.0,2039.1,4.52766865]
[1770631623269,4.41633498,2039.8,2039.1,4.52766865]
[1770631623571,4.42053346,2039.8,2039.1,0.00488317]
[1770631623869,4.41633498,2039.4,2038.5,4.52772865]
[1770631624667,4.42062941,2039.6,2038.5,4.52772865]
[1770631624668,7.31060988,2039.2,2038.5,0.00456951]
[1770631624867,4.41633498,2039.1,2038.5,0.00456951]
[1770631625062,4.41633498,2039.1,2038.5,4.28681816]
[1770631625269,4.41633498,2039.6,2038.5,4.28681816]
[1770631625669,4.41633498,2039.3,2038.5,4.28681816]
[1770631627075,4.41633498,2039.7,2038.7,4.28224865]
[1770631627270,4.41633498,2039.6,2038.9,4.28224865]
[1770631627571,4.42053346,2039.8,2038.9,4.28224865]
[1770631627766,4.41633498,2039.6,2038.9,4.28224865]
[1770631628869,4.42053346,2039.8,2038.9,4.28224865]
[1770631629172,0.00419848,2039.8,2039.1,4.28224865]
[1770631630165,4.41633498,2040.5,2039.5,4.52760865]
[1770631630576,4.41633498,2040.2,2039.5,4.52760865]
[1770631631066,8.83696439,2040.2,2039.5,4.52760865]
[1770631631267,8.84108568,2040.2,2039.5,4.52760865]
[1770631631673,4.42045627,2040.2,2039.5,4.52760865]
[1770631631875,0.00412129,2040.2,2039.5,4.52760865]
[1770631632780,4.41633498,2041.1,2039.8,4.28224865]
[1770631633074,4.41633498,2040.9,2039.8,4.28224865]
[1770631633677,4.41633498,2040.9,2040.0,4.28224865]
[1770631633882,4.42179815,2040.9,2040.0,4.2870304]
[1770631634073,8.84242756,2040.9,2040.0,4.2870304]
[1770631634268,4.41633498,2040.8,2040.0,4.2870304]
[1770631634480,0.00546317,2040.9,2040.2,4.28224865]
[1770631635275,0.00546317,2040.9,2040.1,0.2453]
[1770631635276,4.26098429,2041.3,2040.4,4.54265088]
[1770631635473,4.26098429,2041.2,2040.4,4.54265088]
[1770631635880,4.26098429,2040.9,2040.4,4.54265088]
[1770631636282,0.00601301,2040.9,2040.4,4.54265088]
[1770631637080,4.2669973,2040.9,2040.4,4.54265088]
[1770631637273,4.26098429,2040.8,2040.4,4.54265088]
[1770631637877,4.42062941,2040.6,2040.2,4.21295732]
[1770631638076,4.26098429,2040.8,2040.2,4.21295732]
[1770631638374,4.53164532,2040.6,2040.2,4.21295732]
[1770631638782,4.53164532,2040.6,2040.0,4.21773907]
[1770631638980,4.53164532,2040.4,2040.0,4.21773907]
[1770631639376,0.00601301,2040.9,2040.0,4.21773907]
[1770631639578,4.53164532,2040.8,2040.0,4.21773907]
[1770631640376,8.95227473,2040.8,2040.0,4.21773907]
[1770631640570,4.42062941,2040.8,2040.0,4.21773907]
[1770631640774,0.00601301,2040.9,2040.2,4.21295732]
[1770631641371,0.00601301,2040.9,2040.4,4.21295732]
[1770631642674,4.53164532,2041.3,2040.4,4.21295732]
[1770631642880,8.95227473,2041.3,2040.4,4.21295732]
[1770631643274,4.53164532,2041.8,2040.8,4.21295732]
[1770631643472,4.53164532,2041.8,2041.0,4.21295732]
[1770631643672,4.53518566,2041.8,2041.0,4.21295732]
[1770631643887,8.95581507,2041.8,2041.0,4.21295732]
[1770631644895,0.00354034,2041.8,2041.2,4.21295732]
[1770631645095,4.53164532,2042.2,2041.2,4.21295732]
[1770631645291,8.95227473,2042.2,2041.2,4.21295732]
[1770631645593,4.53164532,2042.2,2041.2,4.21295732]
[1770631645896,4.53164532,2042.2,2041.1,6.0314]
[1770631645897,4.53164532,2042.0,2040.8,4.21295732]
[1770631646096,4.53741706,2042.0,2040.8,4.21295732]
[1770631646394,4.53741706,2042.0,2040.0,0.00478175]
[1770631646395,4.53164532,2041.2,2040.4,4.21295732]
[1770631646787,4.42062941,2041.1,2040.4,4.21295732]
[1770631647191,8.95227473,2041.1,2040.4,4.21295732]
[1770631647389,4.53164532,2041.5,2040.6,4.21295732]
[1770631647997,4.42062941,2041.4,2040.6,4.21295732]
[1770631648191,8.95227473,2041.4,2040.6,4.21295732]
[1770631648395,4.42062941,2041.4,2040.6,4.21295732]
[1770631648598,4.53164532,2041.9,2040.8,4.21295732]
[1770631648797,4.53164532,2041.8,2040.8,4.21295732]
[1770631649112,4.53741706,2042.0,2041.0,4.21295732]
[1770631649301,8.95227473,2041.9,2041.0,4.21295732]
[1770631649595,4.53164532,2041.8,2041.0,4.21295732]
[1770631650201,4.42062941,2041.6,2041.0,4.21295732]
[1770631653700,4.42062941,2041.3,2041.0,4.21295732]
[1770631655206,4.42062941,2041.3,2040.9,4.45815732]
[1770631655405,4.42062941,2041.0,2040.9,0.2452]
[1770631655606,4.53164532,2041.2,2040.7,4.21295732]
[1770631656002,4.42062941,2041.0,2040.7,4.21295732]
[1770631656203,4.53164532,2041.1,2040.7,4.21295732]
[1770631656503,4.53164532,2041.9,2040.8,4.21295732]
[1770631656708,4.53164532,2041.9,2041.0,4.21295732]
[1770631656910,4.53164532,2041.9,2040.9,0.2452]
[1770631657605,4.53164532,2041.9,2040.9,4.45815732]
[1770631661011,4.53164532,2041.9,2040.9,0.2452]
[1770631665512,4.53164532,2041.9,2040.8,0.24521]
[1770631665720,4.53164532,2041.9,2041.1,4.33955291]
[1770631666013,4.53164532,2041.9,2041.3,4.33955291]
[1770631667017,0.00577174,2042.0,2041.7,4.33955291]
[1770631667018,1.74e-06,2042.0,2041.7,4.33955291]
[1770631667317,4.73930892,2042.3,2041.7,4.33955291]
[1770631668218,0.00435231,2042.3,2041.9,4.33955291]
[1770631668815,4.74366123,2042.3,2041.8,0.24509]
[1770631669708,4.74366123,2042.3,2041.7,0.00498601]
[1770631670217,4.73930892,2042.1,2041.2,0.24515]
[1770631671120,4.73930892,2042.1,2041.2,0.25052957]
[1770631672219,7.62682614,2042.1,2041.2,0.25052957]
[1770631672418,4.73930892,2042.0,2041.2,0.25052957]
[1770631673621,4.73930892,2042.0,2041.2,4.59008248]
[1770631679422,4.73930892,2042.2,2041.5,4.33955291]
[1770631681425,4.73930892,2042.2,2041.6,4.58467291]
[1770631681927,0.00435231,2042.3,2041.6,4.58467291]
[1770631685229,4.74366123,2042.3,2041.6,4.58467291]
[1770631685622,4.74366123,2042.3,2041.6,0.24512]
[1770631686222,4.74366123,2042.3,2041.6,4.58467291]
[1770631686424,5.01843852,2043.1,2042.2,0.01957836]
[1770631686725,5.01843852,2043.1,2042.1,0.26463836]
[1770631686919,5.01843852,2043.0,2042.1,0.24506]
[1770631687124,5.01843852,2043.0,2042.1,3.17146467]
[1770631687326,9.59232238,2042.9,2042.1,3.19199142]
[1770631687627,5.01796433,2042.8,2042.1,3.19199142]
[1770631688425,5.01796433,2042.8,2042.3,0.24503]
[1770631689130,14.61028671,2042.8,2042.3,0.24503]
[1770631689430,5.0786876,2042.7,2042.0,3.99721429]
[1770631689823,5.0786876,2042.7,2042.1,1.08571822]
[1770631690120,4.58652299,2043.1,2042.6,1.58431742]
[1770631690322,4.58652299,2043.1,2042.6,0.24499]
[1770631690728,4.829388,2042.9,2042.6,0.24499]
[1770631691230,4.83383988,2042.9,2042.6,0.54895049]
[1770631691425,5.82759395,2044.3,2043.3,6.02479]
[1770631691626,4.82914171,2044.4,2043.3,3.17131467]
[1770631691825,4.82914171,2044.1,2043.0,4.55643235]
[1770631692020,4.82914171,2044.1,2042.9,28.10140467]
[1770631692226,9.59232238,2044.0,2043.2,6.02523]
[1770631692427,4.85600539,2043.9,2043.2,0.24964264]
[1770631692728,4.85600539,2043.7,2043.2,0.24964264]
[1770631693523,4.85605631,2043.9,2043.2,1.81839674]
[1770631694633,4.85605631,2043.9,2043.2,7.84364674]
[1770631694933,4.85605631,2043.9,2043.2,1.81839674]
[1770631696723,5.19575733,2044.0,2043.3,6.24933171]
[1770631697124,14.78807971,2044.0,2043.2,1.81839674]
[1770631697324,14.78807971,2044.0,2043.2,0.24964264]
[1770631697325,5.19575733,2044.0,2043.2,0.24964264]
[1770631697536,5.19059379,2043.7,2043.2,0.24964264]
[1770631699130,5.19059379,2043.7,2043.2,1.02722458]
[1770631699435,5.61682231,2043.9,2043.3,0.77744033]
[1770631699830,15.20914469,2043.9,2043.3,0.77744033]
[1770631700833,5.61682231,2043.8,2043.2,0.24964264]
[1770631701140,5.61682231,2043.5,2043.2,0.24964264]
[1770631701636,5.61682231,2043.5,2042.9,0.75079356]
[1770631701836,5.61682231,2043.5,2042.7,2.92640467]
[1770631701837,5.61682231,2043.4,2042.7,0.74184432]
[1770631702338,5.61682231,2043.9,2042.7,0.74184432]
[1770631702536,5.61682231,2043.8,2043.2,0.24492]
[1770631702934,5.61682231,2043.4,2043.2,0.24492]
[1770631703339,5.61682231,2043.4,2042.8,0.48925998]
[1770631703539,5.61682231,2043.4,2043.2,0.24492]
[1770631703837,5.61682231,2043.9,2043.2,0.24492]
[1770631704036,5.61682231,2043.8,2043.2,0.24492]
[1770631706439,5.61682231,2043.6,2043.4,0.2449]
[1770631706634,5.61682231,2043.6,2042.9,0.24496]
[1770631707042,15.20914469,2043.6,2042.9,0.24496]
[1770631707243,5.61682231,2043.5,2042.9,0.66803921]
[1770631707938,4.56781231,2043.5,2043.1,0.24494]
[1770631708131,5.61682231,2043.9,2043.1,1.70756109]
[1770631708340,5.61682231,2043.7,2043.1,1.70756109]
[1770631708734,5.61682231,2043.5,2043.1,0.24494]
[1770631709545,14.67883469,2043.3,2043.1,0.24494]
[1770631709744,4.30709231,2043.2,2043.1,0.24494]
[1770631710044,5.61682231,2043.5,2042.9,5.28248801]
[1770631710242,5.61682231,2043.5,2043.1,0.24494]
[1770631710442,5.61682231,2043.9,2043.1,5.52742801]
[1770631710642,14.45154437,2043.8,2043.1,5.52742801]
[1770631711042,8.83472206,2043.7,2043.1,5.52742801]
[1770631711644,5.61682231,2043.6,2043.1,5.52742801]
[1770631711845,5.61682231,2043.6,2043.1,0.24494]
[1770631712044,5.03854231,2043.3,2043.1,0.24494]
[1770631712246,5.61682231,2043.9,2043.1,0.24494]
[1770631712547,5.61682231,2043.5,2043.1,5.52742801]
[1770631713047,8.34389206,2043.3,2043.1,5.52742801]
[1770631713247,5.61682231,2043.5,2043.1,5.52742801]
[1770631716145,5.61682231,2043.5,2043.1,3.17134467]
[1770631716348,5.61682231,2043.5,2042.7,2.88312128]
[1770631716349,5.61682231,2043.5,2042.7,0.00589864]
[1770631716854,3.47154497,2043.3,2042.6,0.54895049]
[1770631717543,3.47154497,2043.3,2042.6,0.24499]
[1770631717745,3.98208228,2043.6,2042.8,5.52745801]
[1770631718647,3.98208228,2043.6,2042.8,0.24497]
[1770631718848,3.98208228,2043.6,2042.6,5.59938546]
[1770631719452,47.69246112,2043.6,2042.6,0.00614049]
[1770631719650,4.32204442,2043.5,2042.6,0.00614049]
[1770631720650,4.30669867,2043.4,2042.3,0.24503]
[1770631721251,4.30669867,2043.4,2042.3,5.52751801]
[1770631721653,4.30669867,2043.4,2042.3,5.53273253]
[1770631723050,4.30669867,2043.4,2042.3,0.55951084]
[1770631723753,4.14058515,2043.2,2042.3,0.55951084]
[1770631724448,4.14058515,2043.2,2041.8,11.08008]
[1770631724650,3.47326519,2043.0,2041.9,5.28248801]
[1770631725054,3.47326519,2043.0,2042.1,5.28248801]
[1770631725448,3.25869662,2043.3,2042.7,6.00780136]
[1770631725852,3.25869662,2043.3,2042.4,0.24502]
[1770631726254,3.25869662,2043.3,2042.4,6.25282136]
[1770631726551,3.2396399,2043.5,2042.4,6.25282136]
[1770631727062,3.2396399,2043.5,2043.0,6.00780136]
[1770631727351,3.30500229,2043.8,2043.0,6.00780136]
[1770631728751,40.8,2043.9,2043.0,6.00780136]
[1770631728952,0.00502195,2044.0,2043.2,6.00780136]
[1770631729357,0.00502195,2044.0,2043.4,6.00780136]
[1770631732058,3.27095555,2044.0,2043.4,6.00780136]
[1770631732460,3.27095555,2044.0,2043.3,0.24491]
[1770631733457,11.97180439,2045.1,2043.6,6.00780136]
[1770631733652,6.14511936,2045.1,2043.6,6.00780136]
[1770631733851,40.8,2045.0,2043.6,6.00780136]
[1770631734453,40.80350039,2045.0,2043.6,6.01341838]
[1770631734960,3.24556909,2044.9,2043.8,6.00780136]
[1770631735259,3.24556909,2044.9,2044.0,6.00780136]
[1770631735657,3.24556909,2044.9,2044.2,6.00780136]
[1770631736358,40.80350039,2045.0,2044.2,6.00780136]
[1770631736760,3.1634552,2044.9,2044.2,6.00780136]
[1770631738862,40.80350039,2045.0,2044.2,6.00780136]
[1770631739162,3.12519371,2044.9,2044.2,6.00780136]
[1770631742358,0.00350039,2045.0,2044.4,6.00780136]
[1770631743663,40.8,2046.0,2044.8,6.00780136]
[1770631743664,3.43114796,2045.9,2044.8,6.00780136]
[1770631744463,3.43549855,2045.9,2044.8,6.00780136]
[1770631745666,3.43549855,2045.9,2044.7,0.24474]
[1770631745967,2.87722264,2045.5,2044.6,0.29566408]
[1770631746266,3.3089937,2045.4,2044.2,6.25260136]
[1770631748273,2.73100018,2045.2,2044.2,6.25260136]
[1770631750771,2.73100018,2045.2,2044.0,6.00780136]
[1770631752164,3.04618806,2045.1,2044.0,6.00780136]
[1770631754463,3.12114194,2045.0,2044.0,6.00780136]
[1770631756173,3.12114194,2045.0,2044.2,6.16827242]
[1770631758376,2.92264194,2044.9,2044.2,6.16827242]
[1770631762170,49.25205006,2045.1,2044.2,6.16827242]
[1770631762374,5.56232949,2045.0,2044.2,6.16827242]
[1770631763580,2.89995958,2045.0,2044.2,6.16827242]
[1770631763780,2.6185922,2044.9,2044.2,6.16827242]
[1770631764277,2.62424059,2044.8,2044.2,6.16827242]
[1770631765582,2.89995958,2045.0,2044.4,6.12004151]
[1770631765883,2.89995958,2045.1,2044.4,6.12004151]
[1770631766480,5.49754514,2045.1,2044.4,6.12004151]
[1770631766879,2.89995958,2045.2,2044.6,6.12004151]
[1770631767072,5.47725065,2045.2,2044.6,6.12004151]
[1770631768084,2.89995958,2045.2,2044.6,6.12004151]
[1770631768783,2.89995958,2045.3,2044.6,6.12004151]
[1770631769877,43.69995958,2045.4,2044.6,6.12004151]
[1770631770183,46.20645843,2045.4,2044.6,6.12004151]
[1770631770379,5.82668503,2045.6,2044.8,6.12004151]
[1770631770380,2.89995958,2045.6,2044.8,6.12004151]
[1770631770686,2.55305559,2045.6,2045.0,6.12004151]
[1770631770887,2.55305559,2045.4,2044.6,6.12004151]
[1770631771387,43.69995958,2045.5,2044.6,6.12004151]
[1770631771584,43.69995958,2045.5,2044.8,6.12004151]
[1770631772086,40.8,2045.5,2044.8,6.12004151]
[1770631772886,9.20534595,2045.7,2044.8,6.12004151]
[1770631773089,6.68795958,2045.7,2044.8,6.12004151]
[1770631773384,43.27549933,2045.6,2044.8,6.12004151]
[1770631774792,2.48401619,2045.5,2044.8,6.12004151]
[1770631776789,43.22068514,2045.6,2044.8,6.12004151]
[1770631777989,40.8,2045.6,2044.8,6.12004151]
[1770631778488,40.8,2045.6,2044.9,0.24472]
[1770631778990,40.8,2045.6,2045.0,6.12004151]
[1770631782587,43.0782252,2045.6,2045.0,6.12004151]
[1770631783491,40.8,2045.6,2045.0,6.12004151]
[1770631783790,3.788,2045.7,2045.0,6.12004151]
[1770631784190,44.588,2045.7,2045.0,6.12004151]
[1770631784390,2.26205613,2045.6,2045.0,6.12004151]